bitfinex-derivatives/quotes_SOLF0:USTF0_20250830
["timestamp","ask_amount","ask_price","bid_price","bid_amount"]
[1756546935276,2.91214444,201.95,201.91,0.03546992]
[1756546935777,7.39,201.94,201.91,0.03546992]
[1756546936272,10.30214444,201.92,201.91,0.03546992]
[1756546944980,10.30214444,201.92,201.81,5.32942552]
[1756546945181,10.30214444,201.87,201.8,7.63]
[1756546946382,0.03588613,201.86,201.8,7.63]
[1756546948481,7.42588613,201.86,201.8,7.63]
[1756546952081,7.42588613,201.86,201.75,7.37264444]
[1756546952284,7.42588613,201.86,201.76,7.63]
[1756546952687,2.91214444,201.84,201.76,7.63]
[1756546953590,2.91214444,201.84,201.75,7.37264444]
[1756546953591,0.03588613,201.86,201.78,7.63]
[1756546954190,2.91214444,201.88,201.78,7.63]
[1756546954489,0.03420369,201.84,201.78,7.63]
[1756546957087,7.48,201.83,201.78,7.63]
[1756546957389,7.51420369,201.84,201.78,7.63]
[1756546958485,10.39214444,201.82,201.78,7.63]
[1756546961391,10.39214444,201.82,201.75,7.94]
[1756546961584,2.91214444,201.82,201.75,7.94]
[1756546963589,0.03420369,201.84,201.75,7.94]
[1756546964791,7.48,201.83,201.75,7.94]
[1756546967795,0.03420369,201.84,201.76,7.94]
[1756546968599,0.03420369,201.84,201.77,4.4601]
[1756546968804,0.03420369,201.84,201.78,7.94]
[1756546976001,0.03420369,201.84,201.81,7.94]
[1756546977093,0.03420369,201.84,201.8,2.91214444]
[1756546977299,0.03420369,201.84,201.81,7.94]
[1756546977498,0.03420369,201.84,201.82,7.94]
[1756546977700,0.03420369,201.84,201.8,2.91214444]
[1756546977900,0.03420369,201.84,201.81,7.94]
[1756546978100,0.03420369,201.84,201.8,2.91214444]
[1756546978407,0.03420369,201.84,201.81,7.94]
[1756546978797,0.03420369,201.84,201.8,2.91214444]
[1756546978995,0.03420369,201.84,201.81,7.94]
[1756546979801,0.03420369,201.84,201.8,2.91214444]
[1756546980003,0.03420369,201.84,201.81,7.94]
[1756546980402,7.48,201.93,201.83,2.91214444]
[1756546980602,7.48,201.93,201.84,7.94]
[1756546982501,7.51,201.97,201.89,2.91214444]
[1756546982703,7.51,201.97,201.9,7.94]
[1756546984004,7.51,202.0,201.9,7.94]
[1756546988610,7.51,202.0,201.9,10.85214444]
[1756546988911,7.51,202.0,201.91,7.35]
[1756546995526,7.48,201.97,201.91,7.35]
[1756546995721,7.48,201.97,201.88,2.91214444]
[1756546995919,7.48,201.97,201.88,7.35]
[1756546996122,7.48,201.94,201.88,7.35]
[1756546996323,7.48,201.94,201.85,10.26214444]
[1756546996525,7.48,201.94,201.79,10.26214444]
[1756546996526,2.91214444,201.92,201.79,10.26214444]
[1756546996727,7.48,201.91,201.8,7.35]
[1756546998222,2.91214444,201.89,201.8,7.35]
[1756546998425,7.48,201.88,201.8,7.35]
[1756547000537,10.39214444,201.93,201.82,2.91214444]
[1756547000829,10.39214444,201.93,201.83,7.35]
[1756547003031,7.51,201.89,201.79,7.35]
[1756547006136,7.51,201.89,201.81,7.35]
[1756547009134,10.42214444,201.93,201.83,2.91214444]
[1756547009333,10.42214444,201.93,201.84,7.35]
[1756547014031,7.51,201.98,201.88,2.91214444]
[1756547014235,7.51,201.98,201.89,7.35]
[1756547020145,7.51,201.98,201.92,7.69]
[1756547024750,7.51,201.98,201.88,7.69]
[1756547024952,7.51,201.98,201.89,2.91214444]
[1756547025147,7.51,201.98,201.9,7.69]
[1756547031655,7.51,202.02,201.93,7.69]
[1756547032454,10.42214444,202.02,201.93,7.69]
[1756547033455,7.51,202.02,201.95,7.69]
[1756547034251,109.28,202.03,201.95,7.69]
[1756547035752,109.28,202.03,201.9,2.91214444]
[1756547035753,10.42214444,202.02,201.9,7.69]
[1756547036155,7.51,201.98,201.9,7.69]
[1756547037257,2.91214444,202.02,201.9,7.69]
[1756547037451,7.51,202.01,201.9,7.69]
[1756547039854,7.51,202.01,201.91,7.69]
[1756547040060,7.51,202.04,201.93,7.69]
[1756547040760,7.51,202.04,201.94,7.69]
[1756547041458,7.51,202.04,201.95,7.69]
[1756547041856,7.51,202.04,201.96,2.91214444]
[1756547042057,7.51,202.04,201.95,7.69]
[1756547042654,7.51,202.04,201.97,7.69]
[1756547044356,7.51,202.04,201.92,2.91214444]
[1756547044658,7.51,202.04,201.93,7.69]
[1756547046456,7.51,202.04,201.95,2.91214444]
[1756547046658,7.51,202.04,201.96,7.69]
[1756547048559,79.95463106,202.05,201.99,7.6]
[1756547049562,130.31,202.07,201.99,7.6]
[1756547050160,7.51,202.05,201.91,7.6]
[1756547050365,7.51,202.02,201.93,7.6]
[1756547051360,43.76,202.01,201.88,7.6]
[1756547051560,10.42214444,202.0,201.9,7.6]
[1756547059263,7.51,202.0,201.9,7.6]
[1756547059473,7.51,202.0,201.9,12.0573]
[1756547059669,7.51,202.0,201.91,7.6]
[1756547063070,7.51,202.0,201.92,7.36894444]
[1756547063273,7.51,202.0,201.93,7.6]
[1756547068671,7.51,202.0,201.88,8.02499293]
[1756547068672,7.51,201.99,201.9,7.6]
[1756547068873,2.91214444,201.97,201.9,7.6]
[1756547069069,7.51,201.96,201.9,7.6]
[1756547070768,7.51,202.04,201.9,7.6]
[1756547070971,10.42214444,202.0,201.9,7.6]
[1756547072777,7.51,202.05,201.96,7.6]
[1756547074276,7.51,202.0,201.92,12.92942552]
[1756547074580,7.51,202.0,201.92,7.6]
[1756547075680,7.51,202.0,201.92,12.0568]
[1756547076979,10.21214444,202.04,201.94,4.4564]
[1756547077180,10.21214444,202.04,201.95,7.46]
[1756547078677,7.3,202.04,201.95,7.46]
[1756547079084,7.3,202.04,201.96,4.4559]
[1756547080182,7.3,202.04,201.95,7.46]
[1756547080688,10.21214444,202.04,201.95,7.46]
[1756547080877,10.21214444,202.04,201.97,0.0376898]
[1756547081282,0.03211316,202.03,201.97,0.0376898]
[1756547081683,7.3,202.02,201.97,0.0376898]
[1756547082187,0.03211316,202.03,201.97,0.0376898]
[1756547082382,7.3,202.02,201.97,0.0376898]
[1756547082585,0.03211316,202.03,201.97,0.0376898]
[1756547082786,7.3,202.02,201.97,0.0376898]
[1756547082986,0.03211316,202.03,201.97,0.0376898]
[1756547083184,7.3,202.02,201.97,0.0376898]
[1756547083384,0.03211316,202.03,201.97,0.0376898]
[1756547083686,7.3,202.02,201.97,0.0376898]
[1756547084089,7.33211316,202.03,201.97,0.0376898]
[1756547103515,7.33211316,202.03,201.97,7.4976898]
[1756547105611,7.3,202.0,201.97,0.0376898]
[1756547105915,10.21214444,201.98,201.97,0.0376898]
[1756547106810,0.4623102,201.97,201.88,7.46]
[1756547107010,7.3,201.96,201.88,7.46]
[1756547108212,0.03225899,201.94,201.88,7.46]
[1756547108412,7.33,201.93,201.85,7.94]
[1756547108712,2.91214444,201.92,201.85,7.94]
[1756547108915,2.91214444,201.89,201.81,7.94]
[1756547109117,7.33,201.88,201.81,7.94]
[1756547109716,0.03539405,201.87,201.81,7.94]
[1756547114017,7.33,201.86,201.75,7.94]
[1756547114213,10.24214444,201.84,201.75,7.94]
[1756547114818,0.03263632,201.82,201.75,7.94]
[1756547115323,2.91214444,201.81,201.75,7.94]
[1756547116019,7.36263632,201.82,201.7,4.4617]
[1756547116020,7.33,201.77,201.7,7.94]
[1756547116217,2.91214444,201.75,201.62,7.94]
[1756547116417,2.91214444,201.75,201.65,7.94]
[1756547116823,0.03809606,201.71,201.65,7.94]
[1756547118326,0.03809606,201.71,201.65,7.37484444]
[1756547118525,0.03809606,201.71,201.66,7.94]
[1756547119026,0.03809606,201.71,201.67,4.4624]
[1756547119219,0.03809606,201.71,201.68,7.94]
[1756547119416,0.03809606,201.71,201.67,4.4624]
[1756547120126,0.03809606,201.71,201.68,7.94]
[1756547120728,0.03809606,201.71,201.67,4.4624]
[1756547121222,0.03809606,201.71,201.68,7.94]
[1756547121427,0.03809606,201.71,201.67,4.4624]
[1756547121624,0.03809606,201.71,201.68,7.94]
[1756547122024,38.57,201.81,201.7,7.94]
[1756547122219,7.33,201.81,201.72,7.94]
[1756547125023,2.91214444,201.82,201.72,7.94]
[1756547125330,332.88,201.84,201.75,7.94]
[1756547125923,7.33,201.85,201.77,2.91214444]
[1756547126127,7.33,201.85,201.78,7.94]
[1756547127429,7.33,201.89,201.8,10.85214444]
[1756547127634,7.33,201.89,201.81,7.94]
[1756547128638,2.91214444,201.91,201.83,2.91214444]
[1756547128836,122.66,201.92,201.84,7.94]
[1756547130035,122.66,201.92,201.85,2.91214444]
[1756547130532,340.37,201.96,201.86,7.94]
[1756547130737,7.33,201.96,201.89,7.94]
[1756547132234,122.64,201.98,201.89,7.94]
[1756547134836,129.97,201.98,201.89,7.94]
[1756547135643,132.88214444,201.98,201.89,7.94]
[1756547136237,132.88214444,201.98,201.86,7.94]
[1756547137437,7.33,201.98,201.91,2.91214444]
[1756547139449,7.52,202.03,201.94,2.91214444]
[1756547139639,7.52,202.03,201.94,10.62214444]
[1756547140255,7.52,202.03,201.97,2.91214444]
[1756547142247,7.52,202.05,201.94,10.62214444]
[1756547142546,7.52,202.03,201.94,2.91214444]
[1756547143345,7.52,202.03,201.94,10.62214444]
[1756547143744,82.56,202.05,201.94,10.62214444]
[1756547143745,7.52,202.04,201.94,10.62214444]
[1756547143948,82.56,202.05,201.94,10.62214444]
[1756547144144,7.52,202.04,201.94,10.62214444]
[1756547144344,2.91214444,202.03,201.94,10.62214444]
[1756547144545,7.52,202.02,201.91,2.91214444]
[1756547145749,7.52,202.02,201.91,10.62214444]
[1756547145941,2.91214444,202.03,201.91,10.62214444]
[1756547146139,7.52,202.02,201.91,10.62214444]
[1756547146340,2.91214444,202.0,201.91,7.71]
[1756547146548,7.52,201.99,201.91,7.71]
[1756547146945,7.52,201.99,201.91,10.62214444]
[1756547148243,7.52,202.02,201.92,7.71]
[1756547148653,7.52,202.02,201.94,2.91214444]
[1756547148951,7.52,202.02,201.95,7.71]
[1756547151553,7.52,202.06,201.95,7.71]
[1756547152847,10.43214444,202.06,201.95,7.71]
[1756547155857,7.52,202.06,201.98,7.71]
[1756547161370,7.52,202.01,201.94,7.71]
[1756547161977,2.91214444,201.99,201.85,7.71]
[1756547162166,7.52,201.98,201.88,7.71]
[1756547165472,7.52,201.98,201.88,4.4577]
[1756547165771,7.52,201.98,201.91,7.71]
[1756547167578,7.28,202.01,201.91,7.71]
[1756547168477,2.91214444,202.06,201.97,7.97]
[1756547168674,7.28,202.07,201.97,7.97]
[1756547170478,7.28,202.07,201.99,2.91214444]
[1756547170672,7.28,202.07,202.0,7.97]
[1756547171070,7.28,202.11,202.02,2.91214444]
[1756547171581,7.28,202.11,202.03,7.97]
[1756547172977,7.28,202.11,202.05,2.91214444]
[1756547173181,30.98,202.14,202.06,7.97]
[1756547173776,7.28,202.15,202.06,7.97]
[1756547173976,7.28,202.15,202.08,2.91214444]
[1756547175685,7.28,202.15,202.08,10.88214444]
[1756547177483,7.28,202.15,202.08,7.97]
[1756547177683,7.28,202.15,202.04,7.97]
[1756547177887,7.28,202.15,202.06,2.91214444]
[1756547178187,7.28,202.15,202.1,2.91214444]
[1756547178385,7.28,202.15,202.1,10.88214444]
[1756547178777,7.28,202.15,202.11,7.97]
[1756547182381,458.97329611,202.2,202.11,7.97]
[1756547182587,7.28,202.19,202.1,2.91214444]
[1756547182988,458.97329611,202.2,202.08,10.88214444]
[1756547183889,7.28,202.19,202.08,10.88214444]
[1756547184786,7.28,202.19,202.09,7.97]
[1756547184987,7.28,202.19,202.11,2.91214444]
[1756547186495,7.28,202.19,202.09,7.97]
[1756547190394,7.28,202.19,202.1,2.91214444]
[1756547190596,7.28,202.19,202.11,7.97]
[1756547191796,125.31214444,202.21,202.13,7.97]
[1756547192096,7.28,202.2,202.1,10.88214444]
[1756547195305,125.31214444,202.21,202.1,10.88214444]
[1756547195603,126.17320022,202.21,202.1,10.88214444]
[1756547195796,7.28,202.2,202.1,7.97]
[1756547198004,2.91214444,202.18,202.1,7.97]
[1756547198407,7.53,202.17,202.1,7.97]
[1756547200507,7.53,202.12,202.03,7.81]
[1756547201201,7.53,202.09,201.96,7.81]
[1756547201407,2.91214444,202.07,201.98,7.81]
[1756547201600,7.53,202.06,201.98,7.81]
[1756547202911,34.21214444,202.09,201.98,7.81]
[1756547203203,31.3,202.09,202.0,2.91214444]
[1756547203409,31.3,202.09,202.01,7.81]
[1756547204111,7.53,202.1,202.01,7.81]
[1756547206208,2.91214444,202.08,202.01,7.81]
[1756547206408,7.53,202.07,202.01,7.81]
[1756547208010,10.44214444,202.11,202.01,7.81]
[1756547214618,2.91214444,202.1,202.01,7.81]
[1756547215415,7.53,202.09,202.01,7.81]
[1756547215716,2.91214444,202.1,202.01,7.81]
[1756547216318,7.53,202.12,202.02,2.91214444]
[1756547216516,7.53,202.12,202.03,7.81]
[1756547218420,7.53,202.12,202.04,7.81]
[1756547218816,7.53,202.12,202.06,7.81]
[1756547219023,7.53,202.15,202.06,7.81]
[1756547221021,7.53,202.15,202.06,10.72214444]
[1756547221322,7.53,202.15,202.07,7.81]
[1756547221519,7.53,202.15,202.07,4.4535]
[1756547221717,7.53,202.15,202.08,7.81]
[1756547225520,7.53,202.15,202.09,7.36514444]
[1756547225825,7.53,202.18,202.1,7.81]
[1756547228826,7.53,202.18,202.12,2.91214444]
[1756547229227,7.53,202.18,202.12,10.52214444]
[1756547232627,7.49,202.21,202.13,7.61]
[1756547235729,7.49,202.21,202.15,2.91214444]
[1756547236130,7.49,202.21,202.13,7.61]
[1756547238035,7.49,202.21,202.12,2.91214444]
[1756547239032,7.49,202.21,202.12,10.52214444]
[1756547240328,7.49,202.21,202.12,2.91214444]
[1756547240534,7.49,202.21,202.13,7.61]
[1756547240836,7.49,202.24,202.13,7.61]
[1756547241937,7.49,202.24,202.14,4.4519]
[1756547242138,333.44097057,202.25,202.15,10.52214444]
[1756547242533,7.49,202.24,202.15,10.52214444]
[1756547243040,7.49,202.24,202.15,7.61]
[1756547244542,7.49,202.27,202.2,2.91214444]
[1756547244741,7.49,202.27,202.2,10.52214444]
[1756547244941,7.49,202.27,202.21,7.61]
[1756547245643,7.49,202.3,202.21,7.61]
[1756547245838,7.49,202.3,202.23,10.52214444]
[1756547246241,332.44,202.37,202.23,10.52214444]
[1756547246242,7.49,202.35,202.24,7.61]
[1756547251543,7.49,202.32,202.24,7.61]
[1756547254241,7.49,202.32,202.21,2.91214444]
[1756547254441,7.49,202.32,202.22,7.61]
[1756547258043,7.49,202.32,202.25,7.53]
[1756547262752,7.49,202.32,202.26,7.53]
[1756547267047,2.91214444,202.35,202.26,7.53]
[1756547267247,7.52,202.36,202.26,7.53]
[1756547272156,10.43214444,202.36,202.26,7.53]
[1756547272552,7.52,202.36,202.26,7.53]
[1756547274352,7.52,202.33,202.26,7.53]
[1756547276854,7.52,202.33,202.27,7.53]
[1756547285068,7.52,202.33,202.24,2.91214444]
[1756547285269,7.52,202.33,202.24,10.44214444]
[1756547285473,7.52,202.33,202.24,2.91214444]
[1756547285765,7.52,202.33,202.25,7.53]
[1756547287466,0.8604171,202.36,202.27,2.91214444]
[1756547287671,462.17,202.37,202.28,7.78]
[1756547289071,129.73,202.37,202.28,7.78]
[1756547290473,129.71,202.37,202.28,7.78]
[1756547291167,7.51,202.37,202.3,2.91214444]
[1756547291367,7.51,202.37,202.24,5.32942552]
[1756547291368,7.51,202.37,202.31,2.91214444]
[1756547291565,7.51,202.37,202.31,10.69214444]
[1756547292666,7.51,202.41,202.32,7.78]
[1756547292872,7.51,202.41,202.33,7.78]
[1756547293378,7.51,202.41,202.35,7.78]
[1756547294372,363.35382267,202.6,202.35,7.78]
[1756547294373,7.51,202.48,202.35,7.78]
[1756547294568,7.51,202.46,202.35,7.78]
[1756547295776,7.51,202.46,202.37,2.91214444]
[1756547295977,7.51,202.46,202.38,7.78]
[1756547300478,7.51,202.46,202.35,10.69214444]
[1756547300675,2.91214444,202.47,202.35,10.69214444]
[1756547300879,7.51,202.46,202.35,10.69214444]
[1756547301076,7.51,202.46,202.35,2.91214444]
[1756547301280,7.51,202.46,202.36,7.78]
[1756547302784,7.51,202.46,202.39,7.78]
[1756547303880,7.51,202.48,202.39,7.78]
[1756547304786,7.51,202.45,202.39,7.78]
[1756547310885,7.51,202.48,202.4,7.78]
[1756547314201,7.51,202.46,202.35,2.91214444]
[1756547314396,7.51,202.46,202.36,7.78]
[1756547321103,7.51,202.46,202.38,2.91214444]
[1756547321401,7.51,202.46,202.39,8.02]
[1756547322103,7.51,202.46,202.36,8.02]
[1756547337409,9.36572045,202.46,202.4,1.85572045]
[1756547339014,1.85572045,202.44,202.4,1.85572045]
[1756547339319,7.51,202.43,202.4,9.87572045]
[1756547340204,1.85572045,202.44,202.4,9.87572045]
[1756547340409,7.51,202.43,202.4,9.87572045]
[1756547340710,1.85572045,202.42,202.36,8.02]
[1756547341013,9.36572045,202.42,202.36,8.02]
[1756547342717,7.51,202.41,202.37,9.87572045]
[1756547342917,1.85572045,202.42,202.37,9.87572045]
[1756547343118,5.43791049,202.48,202.37,9.87572045]
[1756547343314,7.51,202.44,202.37,8.02]
[1756547346121,7.51,202.44,202.37,10.92051969]
[1756547346312,7.51,202.47,202.38,8.02]
[1756547349222,7.51,202.47,202.4,2.90051969]
[1756547349421,7.51,202.47,202.41,7.67]
[1756547354424,7.51,202.5,202.41,7.67]
[1756547357229,7.51,202.48,202.41,7.67]
[1756547361932,7.51,202.48,202.42,2.90051969]
[1756547362431,7.51,202.48,202.43,7.67]
[1756547362633,3.76029906,202.52,202.43,7.67]
[1756547362830,7.51,202.51,202.43,7.67]
[1756547363331,7.51,202.51,202.45,2.90051969]
[1756547363732,7.51,202.51,202.46,7.67]
[1756547364026,7.51,202.51,202.45,10.57051969]
[1756547364635,12.94791049,202.56,202.46,7.67]
[1756547364828,7.51,202.56,202.46,10.57051969]
[1756547365033,7.51,202.57,202.46,10.57051969]
[1756547365631,2.90051969,202.55,202.46,7.67]
[1756547365833,7.51,202.54,202.43,7.67]
[1756547367332,10.41051969,202.54,202.43,7.67]
[1756547367523,7.51,202.54,202.43,7.67]
[1756547367721,7.51,202.54,202.45,2.90051969]
[1756547367925,7.51,202.54,202.46,7.67]
[1756547374434,5.43791049,202.62,202.46,7.67]
[1756547374435,7.51,202.57,202.46,7.67]
[1756547374735,10.41051969,202.57,202.48,2.90051969]
[1756547374934,10.41051969,202.57,202.49,7.67]
[1756547375140,7.51,202.57,202.49,7.67]
[1756547375438,7.51,202.55,202.51,9.52374851]
[1756547375642,7.51,202.55,202.52,7.67]
[1756547375830,1.85374851,202.56,202.51,9.52374851]
[1756547376036,7.51,202.55,202.51,9.52374851]
[1756547376334,1.85374851,202.56,202.51,9.52374851]
[1756547376737,7.51,202.55,202.51,9.52374851]
[1756547376940,7.51,202.55,202.52,7.67]
[1756547377140,7.32,202.59,202.51,9.54374851]
[1756547377341,7.32,202.59,202.51,10.58588385]
[1756547377742,7.32,202.59,202.52,7.69]
[1756547379247,7.32,202.63,202.54,2.89588385]
[1756547379446,7.32,202.63,202.55,7.69]
[1756547379838,55.04,202.65,202.55,7.69]
[1756547380541,7.32,202.64,202.55,7.69]
[1756547380844,10.21588385,202.64,202.55,7.69]
[1756547381247,7.32,202.69,202.6,7.69]
[1756547381747,2.89588385,202.68,202.6,7.69]
[1756547381946,7.32,202.67,202.6,7.69]
[1756547383246,7.32,202.67,202.57,2.89588385]
[1756547383247,7.32,202.67,202.56,7.69]
[1756547383444,7.32,202.66,202.56,10.58588385]
[1756547385050,7.32,202.66,202.57,7.69]
[1756547389653,7.32,202.66,202.59,2.89588385]
[1756547389953,7.32,202.66,202.59,10.58588385]
[1756547391155,7.32,202.7,202.6,7.69]
[1756547391861,10.21588385,202.7,202.6,7.69]
[1756547392656,7.32,202.7,202.6,7.69]
[1756547392953,0.85894113,202.71,202.6,7.69]
[1756547392954,7.32,202.68,202.6,7.69]
[1756547393351,10.21588385,202.68,202.6,7.69]
[1756547393550,7.32,202.68,202.6,7.69]
[1756547400455,2.89588385,202.67,202.6,7.69]
[1756547400756,7.32,202.66,202.6,7.69]
[1756547401261,7.32,202.71,202.62,2.89588385]
[1756547401461,7.32,202.71,202.63,7.69]
[1756547403863,3.75477198,202.75,202.52,7.69]
[1756547403864,7.32,202.65,202.52,7.69]
[1756547404065,2.89588385,202.57,202.43,7.69]
[1756547404263,7.32,202.59,202.46,7.69]
[1756547404571,10.21588385,202.59,202.49,7.69]
[1756547406274,2.89588385,202.56,202.49,7.69]
[1756547406572,7.32,202.52,202.43,7.69]
[1756547411476,7.32,202.52,202.44,7.96]
[1756547411976,2.89588385,202.54,202.44,7.96]
[1756547412467,2.89588385,202.6,202.51,7.96]
[1756547412674,10.42588385,202.6,202.51,7.96]
[1756547413376,10.42588385,202.6,202.52,7.96]
[1756547414673,7.53,202.6,202.52,7.96]
[1756547418678,7.53,202.6,202.54,10.85588385]
[1756547422282,7.53,202.6,202.54,7.96]
[1756547424171,7.51,202.64,202.54,7.96]
[1756547432185,7.51,202.64,202.56,2.89588385]
[1756547432386,7.51,202.64,202.56,10.85588385]
[1756547432783,2.89588385,202.66,202.51,7.96]
[1756547432989,7.51,202.62,202.53,2.89588385]
[1756547433189,7.51,202.62,202.51,7.96]
[1756547433388,7.51,202.62,202.53,7.96]
[1756547434392,7.51,202.69,202.6,7.96]
[1756547434593,7.51,202.69,202.62,2.89588385]
[1756547434885,7.51,202.69,202.6,7.96]
[1756547435092,7.51,202.69,202.61,2.89588385]
[1756547439793,7.51,202.69,202.62,7.34]
[1756547443891,7.5,202.74,202.64,2.89588385]
[1756547444091,7.5,202.74,202.65,7.34]
[1756547445295,7.5,202.74,202.65,10.23588385]
[1756547445592,7.5,202.78,202.66,7.34]
[1756547445797,10.39588385,202.78,202.66,7.34]
[1756547445998,7.5,202.78,202.7,7.34]
[1756547450596,7.5,202.78,202.66,2.89588385]
[1756547450798,2.89588385,202.76,202.67,7.34]
[1756547451000,10.39588385,202.76,202.67,7.34]
[1756547452697,7.5,202.72,202.62,7.34]
[1756547453201,7.5,202.72,202.63,2.89588385]
[1756547453405,7.5,202.72,202.64,7.34]
[1756547454402,7.5,202.72,202.66,2.89588385]
[1756547454603,7.5,202.72,202.66,7.34]
[1756547455505,30.24,202.8,202.66,7.34]
[1756547455706,2.89588385,202.76,202.66,7.34]
[1756547455905,10.39588385,202.76,202.66,7.34]
[1756547463112,7.5,202.72,202.66,7.34]
[1756547463908,7.5,202.76,202.67,2.89588385]
[1756547464220,7.5,202.76,202.68,7.34]
[1756547465112,7.5,202.79,202.68,7.34]
[1756547466517,10.39588385,202.79,202.68,7.34]
[1756547468521,7.5,202.79,202.71,7.29]
[1756547471823,334.63588385,202.83,202.71,7.29]
[1756547472019,2.89588385,202.83,202.73,2.89588385]
[1756547472220,7.46,202.82,202.74,7.29]
[1756547473524,129.64,202.85,202.74,7.29]
[1756547473723,129.64,202.85,202.76,7.29]
[1756547474218,7.46,202.93,202.72,7.29]
[1756547474521,7.46,202.9,202.79,10.18588385]
[1756547474712,2.89588385,202.91,202.79,10.18588385]
[1756547474912,7.46,202.9,202.79,10.18588385]
[1756547475314,7.46,202.9,202.79,7.29]
[1756547475518,10.35588385,202.9,202.79,7.29]
[1756547476522,2.89588385,202.87,202.79,7.29]
[1756547476728,7.46,202.86,202.76,2.89588385]
[1756547476928,7.46,202.86,202.77,7.29]
[1756547477225,7.46,202.86,202.74,4.4388]
[1756547477226,7.46,202.86,202.8,7.29]
[1756547478129,7.46,202.86,202.77,7.29]
[1756547479125,10.35588385,202.86,202.77,7.29]
[1756547479430,2.89588385,202.83,202.71,335.64038885]
[1756547479622,2.89588385,202.8,202.72,7.29]
[1756547479822,7.46,202.79,202.72,7.29]
[1756547485932,2.89588385,202.8,202.68,7.29]
[1756547485933,7.46,202.76,202.68,7.29]
[1756547486325,2.89588385,202.74,202.68,7.29]
[1756547486530,2.89588385,202.74,202.64,4.14038885]
[1756547486531,7.46,202.73,202.64,7.29]
[1756547487031,2.89588385,202.71,202.64,7.29]
[1756547487528,7.46,202.7,202.64,7.29]
[1756547493040,7.46,202.74,202.64,7.29]
[1756547493240,10.35588385,202.74,202.64,7.29]
[1756547493538,10.35588385,202.74,202.65,7.29]
[1756547493738,2.89588385,202.78,202.67,7.29]
[1756547493931,2.89588385,202.78,202.69,2.89588385]
[1756547494337,2.89588385,202.78,202.7,7.29]
[1756547497534,7.46,202.79,202.7,7.29]
[1756547504339,7.46,202.79,202.67,7.34]
[1756547504542,2.89588385,202.77,202.67,7.34]
[1756547504742,7.49,202.76,202.67,7.34]
[1756547504943,2.89588385,202.79,202.67,7.34]
[1756547505641,61.61588385,202.79,202.67,7.34]
[1756547505842,117.39588385,202.79,202.67,7.34]
[1756547509144,2.89588385,202.76,202.67,7.34]
[1756547515555,2.89588385,202.74,202.67,7.34]
[1756547517454,2.89588385,202.72,202.67,7.34]
[1756547517655,2.89588385,202.72,202.63,7.34]
[1756547522966,2.89588385,202.66,202.58,7.34]
[1756547523263,2.89588385,202.63,202.57,7.34]
[1756547525060,2.89588385,202.6,202.57,7.34]
[1756547525258,2.89588385,202.6,202.54,7.34]
[1756547525857,2.89588385,202.7,202.54,7.34]
[1756547526057,2.89588385,202.7,202.55,7.34]